bitfinex/quotes_ETHUSD_20240702
["timestamp","ask_amount","ask_price","bid_price","bid_amount"]
[1719939747429,5.85195,3417.7,3417.1,0.0372043]
[1719939747752,0.50676882,3417.5,3417.1,0.0372043]
[1719939747955,0.50676882,3417.4,3417.1,0.0372043]
[1719939748158,0.50676882,3417.6,3417.1,0.0372043]
[1719939748358,0.50676882,3417.5,3417.1,0.0372043]
[1719939748555,0.50676882,3417.6,3417.1,0.0372043]
[1719939748851,5.34847,3417.5,3417.1,0.0372043]
[1719939749155,1.049,3417.3,3416.7,2.92678]
[1719939749366,0.50680863,3417.2,3416.8,0.03724712]
[1719939749530,2.92621,3417.4,3416.8,0.03724712]
[1719939749722,0.5067806,3417.3,3416.8,0.03724712]
[1719939749926,0.5067806,3417.2,3416.8,0.03724712]
[1719939750131,2.92621,3417.4,3416.9,0.03722968]
[1719939750465,0.50678066,3417.3,3416.7,5.85352]
[1719939750664,0.50678066,3417.2,3417.0,0.03721225]
[1719939750840,2.92621,3417.4,3416.8,2.92671]
[1719939751041,0.50677532,3417.3,3417.1,0.03719956]
[1719939751240,0.50677532,3417.2,3417.1,0.03719956]
[1719939751870,0.50677532,3417.2,3417.0,2.3232]
[1719939752170,2.92598,3417.7,3417.1,0.56217656]
[1719939752465,0.5067679,3417.6,3417.1,3.48862656]
[1719939752676,0.5067679,3417.6,3417.2,2.92635]
[1719939752677,0.50676489,3417.6,3417.2,2.92635]
[1719939752970,0.50676489,3417.5,3417.3,1.01587436]
[1719939753140,0.50676489,3417.4,3417.3,1.01587436]
[1719939753469,0.50676489,3417.4,3417.3,0.0371647]
[1719939753844,0.50676489,3417.4,3417.2,2.92635]
[1719939754049,3.22953354,3417.9,3417.3,0.0371647]
[1719939754384,4.48162175,3417.8,3417.3,0.0371647]
[1719939754684,0.50675175,3417.7,3417.3,0.0371647]
[1719939754845,0.50675175,3417.7,3417.0,2.92646]
[1719939755052,0.50675175,3417.7,3417.4,0.03714727]
[1719939755252,0.50675175,3417.7,3417.0,2.92646]
[1719939755572,2.92604,3417.6,3417.1,0.03719956]
[1719939755873,0.50676234,3417.5,3417.1,0.03719956]
[1719939756077,0.50676234,3417.4,3417.1,0.03719956]
[1719939756233,0.50676234,3417.3,3417.1,0.03719956]
[1719939756435,0.50676234,3417.2,3417.1,0.03719956]
[1719939758369,0.50676234,3417.2,3417.1,0.03718062]
[1719939758537,0.50676234,3417.2,3416.6,2.9268]
[1719939758740,0.50676234,3417.1,3416.7,0.03725035]
[1719939758938,0.50676234,3417.2,3416.7,0.03725035]
[1719939759172,0.50680395,3417.1,3416.7,0.03725035]
[1719939759471,0.50680395,3417.0,3416.7,0.03725035]
[1719939759674,3.97529,3417.3,3416.7,0.03725035]
[1719939759986,0.50679962,3417.2,3416.7,0.03725035]
[1719939760275,0.50679962,3417.1,3416.7,0.03725035]
[1719939760575,0.50679962,3417.0,3416.7,0.03725035]
[1719939760775,3.97529,3417.3,3416.7,0.03725035]
[1719939760984,0.50679944,3417.2,3416.7,3.61788894]
[1719939761185,0.50679944,3417.1,3416.8,2.3232]
[1719939761476,2.92618,3417.5,3416.9,0.03721548]
[1719939761651,0.50677221,3417.4,3416.9,0.49027818]
[1719939761836,0.50677221,3417.3,3416.9,0.49027818]
[1719939762159,0.50677221,3417.2,3416.9,0.49027818]
[1719939762404,0.50677252,3417.1,3417.0,2.92652]
[1719939762575,1.35273354,3417.9,3417.0,3.96347468]
[1719939762775,1.049,3417.7,3417.1,0.03718062]
[1719939763027,0.50675801,3417.6,3417.1,0.03718062]
[1719939763316,3.43278801,3417.6,3417.1,0.03718062]
[1719939763475,0.50675801,3417.5,3417.1,0.4204227]
[1719939765728,2.4658,3418.3,3417.4,2.92614]
[1719939766025,0.50669048,3418.2,3417.6,2.92599]
[1719939766224,2.92544,3418.3,3417.6,2.92599]
[1719939766225,0.50669048,3418.1,3417.6,2.92599]
[1719939766385,2.92544,3418.3,3417.7,0.03707606]
[1719939766386,0.50669048,3418.0,3417.7,0.03707606]
[1719939766588,0.50669048,3417.9,3417.7,0.03707606]
[1719939766817,0.50667504,3417.8,3417.7,0.03707606]
[1719939768823,2.2656,3418.1,3417.7,0.03707606]
[1719939768824,0.50669274,3418.0,3417.7,0.03707606]
[1719939769222,0.50669274,3418.1,3417.7,0.03707606]
[1719939769392,0.50669274,3418.0,3417.7,0.03707606]
[1719939769592,0.50669274,3417.9,3417.7,0.03707606]
[1719939769921,1.049,3418.2,3417.7,0.03707606]
[1719939770128,0.50668267,3418.1,3417.7,0.03707606]
[1719939770325,0.50668267,3418.0,3417.7,0.03707606]
[1719939770541,0.50668267,3417.9,3417.7,0.03707606]
[1719939770748,1.049,3418.2,3417.7,0.03707606]
[1719939770907,0.50667305,3418.1,3417.7,0.03707606]
[1719939771115,0.50667305,3418.0,3417.7,0.03707606]
[1719939771307,5.21634,3418.3,3417.7,0.03707606]
[1719939771526,0.50666493,3418.2,3417.7,2.96301606]
[1719939771821,0.50666493,3418.1,3417.7,2.96301606]
[1719939772025,0.50666493,3418.0,3417.7,2.96301606]
[1719939772218,2.2909,3418.3,3417.7,2.96301606]
[1719939772446,0.50666315,3418.2,3417.7,3.78423267]
[1719939772626,0.50666315,3418.1,3417.7,3.78423267]
[1719939772944,1.049,3418.4,3417.7,3.78423267]
[1719939773150,0.50666365,3418.3,3417.7,2.96301606]
[1719939773368,0.50666365,3418.2,3417.7,2.96301606]
[1719939773530,0.50666365,3418.1,3417.7,2.96301606]
[1719939773723,2.3573,3418.6,3417.8,5.24904]
[1719939773934,1.5556347,3418.5,3417.8,5.24904]
[1719939774136,0.5066347,3418.4,3417.9,0.0368447]
[1719939774444,0.5066347,3418.4,3417.9,2.92572]
[1719939774954,2.3573,3418.6,3418.0,0.03682728]
[1719939774955,0.5066386,3418.3,3418.0,0.03682728]
[1719939775119,1.049,3418.5,3418.0,0.03682728]
[1719939775325,0.50663842,3418.4,3418.0,0.03682728]
[1719939775525,0.50663842,3418.3,3418.0,0.03682728]
[1719939775734,1.049,3418.5,3418.0,0.03682728]
[1719939775953,0.50665519,3418.4,3418.0,0.03682728]
[1719939776266,0.50665519,3418.3,3418.0,0.03682728]
[1719939776450,1.049,3418.5,3418.0,0.03682728]
[1719939776750,0.50665456,3418.4,3418.0,0.03682728]
[1719939777049,0.50665456,3418.3,3418.0,0.03682728]
[1719939777255,0.50665456,3418.4,3418.0,0.03682728]
[1719939777415,0.50665456,3418.3,3418.0,2.96250728]
[1719939777620,1.049,3418.5,3418.0,2.96250728]
[1719939777816,0.50663832,3418.4,3418.0,2.96250728]
[1719939778030,0.50663832,3418.3,3418.1,2.92558]
[1719939778229,2.92407,3419.9,3418.2,2.92551]
[1719939778230,2.92476,3419.1,3418.2,2.92551]
[1719939778451,3.83895024,3419.6,3418.2,2.96230244]
[1719939778452,1.049,3418.8,3418.2,2.96230244]
[1719939778758,0.50663713,3418.7,3418.2,2.96230244]
[1719939778916,0.50663713,3418.6,3418.2,2.96230244]
[1719939779248,1.049,3418.8,3418.2,2.96230244]
[1719939779249,0.50663713,3418.5,3418.2,2.96230244]
[1719939779453,1.049,3418.8,3418.2,2.96230244]
[1719939779658,0.50660803,3418.7,3418.2,2.96230244]
[1719939779853,0.50660803,3418.6,3418.2,2.96230244]
[1719939780014,0.50660803,3418.5,3418.2,2.96230244]
[1719939781034,1.049,3418.6,3418.2,2.96230244]
[1719939781236,0.50661811,3418.5,3418.2,2.96230244]
[1719939781436,1.049,3418.6,3418.2,2.96230244]
[1719939781635,0.50661872,3418.5,3418.2,2.96230244]
[1719939781848,1.049,3418.6,3418.2,2.96230244]
[1719939782048,0.50661871,3418.5,3418.2,2.96230244]
[1719939782224,1.049,3418.6,3418.2,2.96230244]
[1719939782421,0.50661549,3418.5,3418.2,2.96230244]
[1719939782625,1.049,3418.6,3418.2,2.96230244]
[1719939782853,0.50661653,3418.5,3418.2,2.96230244]
[1719939783128,1.049,3418.6,3418.2,2.96230244]
[1719939783319,0.50661322,3418.5,3418.2,2.96230244]
[1719939783526,3.97401,3418.8,3418.2,2.96230244]
[1719939783853,0.50660847,3418.7,3418.2,2.96230244]
[1719939784161,0.50660372,3418.6,3418.2,2.96230244]
[1719939784358,1.049,3418.8,3418.2,2.96230244]
[1719939784530,0.50660414,3418.7,3418.2,2.96230244]
[1719939784729,0.50660414,3418.6,3418.2,2.96230244]
[1719939784925,0.50660414,3418.7,3418.2,2.96230244]
[1719939785139,0.50660419,3418.6,3418.2,2.96230244]
[1719939785338,1.049,3418.8,3418.2,2.96230244]
[1719939785539,0.50660452,3418.7,3418.2,2.96230244]
[1719939785860,0.50660452,3418.6,3418.2,2.96230244]
[1719939786059,1.049,3418.8,3418.2,2.96230244]
[1719939786259,0.50660406,3418.7,3418.2,2.96230244]
[1719939786450,0.50660406,3418.6,3418.2,2.96230244]
[1719939786649,1.049,3418.8,3418.2,2.96230244]
[1719939786850,0.50660095,3418.7,3418.2,2.96230244]
[1719939787056,1.049,3418.8,3418.2,2.96230244]
[1719939787370,0.50660004,3418.7,3418.2,5.88776244]
[1719939787551,0.50660004,3418.6,3418.2,5.88776244]
[1719939787758,0.50660004,3418.7,3418.2,5.88776244]
[1719939787925,1.049,3418.8,3418.2,5.88776244]
[1719939787926,0.50660456,3418.6,3418.2,5.88776244]
[1719939788131,1.049,3418.8,3418.2,5.88776244]
[1719939788332,0.50660453,3418.7,3418.2,5.88776244]
[1719939788533,0.50660453,3418.6,3418.2,2.96225244]
[1719939788732,0.50660453,3418.7,3418.2,2.96225244]
[1719939790432,0.50661549,3418.6,3418.2,5.88770244]
[1719939790657,0.50661549,3418.5,3418.2,2.96224244]
[1719939790877,1.049,3418.8,3418.2,2.96224244]
[1719939791079,0.50661004,3418.7,3418.2,2.96224244]
[1719939791370,0.50661004,3418.6,3418.2,2.96224244]
[1719939791557,0.50661004,3418.7,3418.2,2.96224244]
[1719939793061,0.50661004,3418.7,3418.3,2.92541]
[1719939793592,0.50659661,3418.6,3418.4,0.03667001]
[1719939793792,0.50659661,3418.5,3418.4,0.03667001]
[1719939794299,0.50659661,3418.8,3418.4,0.03667001]
[1719939794516,0.50659661,3418.7,3418.4,0.03667001]
[1719939794810,0.50659661,3418.6,3418.4,0.03667001]
[1719939795111,0.50659661,3418.8,3418.4,0.03667001]
[1719939795309,0.50659661,3418.7,3418.4,0.03667001]
[1719939795613,0.50659661,3418.6,3418.4,0.03667001]
[1719939795776,3.22856962,3419.1,3418.4,0.03667001]
[1719939795777,0.30381962,3419.1,3418.9,2.92483]
[1719939795965,0.50650508,3419.0,3418.9,2.92483]
[1719939796162,2.3516,3419.7,3419.0,2.92479]
[1719939796392,0.50647603,3419.6,3419.0,2.92479]
[1719939796667,0.50647603,3419.5,3419.0,2.92479]
[1719939796865,0.50647581,3419.4,3419.0,2.92475]
[1719939797071,5.27584,3419.7,3419.0,2.92475]
[1719939797072,0.50647581,3419.3,3419.0,2.92475]
[1719939797400,0.5064764,3419.2,3419.0,2.92475]
[1719939797707,1.049,3419.6,3419.0,5.84951]
[1719939797922,0.50647874,3419.5,3419.0,2.92475]
[1719939798205,0.50647874,3419.4,3419.0,2.92475]
[1719939798371,0.50647874,3419.5,3419.0,2.92475]
[1719939798578,0.50647874,3419.4,3419.0,2.92475]
[1719939798779,0.50647874,3419.3,3419.0,2.92475]
[1719939798960,0.50647874,3419.5,3419.0,2.92475]
[1719939799165,0.50647874,3419.4,3419.0,2.92475]
[1719939799366,0.50647874,3419.3,3419.0,2.92475]
[1719939799597,0.50647874,3419.5,3418.9,2.9249]
[1719939799801,0.50647874,3419.2,3418.9,2.9249]
[1719939800000,0.50650749,3419.1,3418.9,2.9249]
[1719939800303,0.50650766,3419.5,3418.9,2.9249]
[1719939800502,0.50650546,3419.4,3418.9,2.9249]
[1719939800810,0.50650546,3419.3,3418.9,2.9249]
[1719939800973,0.50650546,3419.5,3418.9,2.9249]
[1719939801169,0.50650546,3419.5,3419.0,2.92482]
[1719939802694,0.50650546,3419.5,3418.8,2.92492]
[1719939802877,0.50650546,3419.5,3418.9,2.92487]
[1719939803083,3.97331,3419.6,3418.9,2.92487]
[1719939803294,1.5555069,3419.4,3418.9,2.92487]
[1719939803479,0.5065069,3419.3,3418.7,2.92501]
[1719939803708,3.3132,3419.2,3418.7,2.92501]
[1719939803896,0.5065069,3419.1,3418.5,2.92519]
[1719939805310,0.5065069,3419.1,3418.6,0.03615247]
[1719939806338,2.92475,3419.1,3418.6,0.03615247]
[1719939806609,6.23787,3419.2,3418.3,2.92542]
[1719939806610,4.48038167,3419.0,3418.3,2.92542]
[1719939806781,4.48038167,3419.0,3418.4,0.03620859]
[1719939806782,1.049,3418.8,3418.4,0.03620859]
[1719939806981,0.50655167,3418.7,3418.2,2.92549]
[1719939807187,0.50655167,3418.7,3418.3,0.03622601]
[1719939807370,1.049,3418.6,3417.8,2.92582]
[1719939807591,1.049,3418.2,3417.9,0.03629569]
[1719939807795,1.049,3418.4,3417.9,0.03629569]
[1719939807996,2.92517,3418.6,3417.9,0.03629569]
[1719939807997,0.50664671,3418.3,3417.9,0.03629569]
[1719939808315,1.049,3418.5,3417.8,2.92584]
[1719939808616,0.50662879,3418.4,3417.9,0.95868869]
[1719939808819,1.049,3418.5,3417.9,0.95868869]
[1719939809022,0.50662835,3418.4,3417.9,0.95868869]
[1719939809232,1.049,3418.5,3417.9,0.95868869]
[1719939809420,0.5066282,3418.4,3417.9,0.95868869]
[1719939809617,2.92517,3418.6,3417.9,0.95868869]
[1719939809932,0.50662799,3418.5,3417.9,0.95868869]
[1719939810131,2.92504,3418.8,3418.0,0.91336187]
[1719939810132,0.50662782,3418.4,3418.0,0.91336187]
[1719939810298,3.97404,3418.8,3418.0,3.83898187]
[1719939810499,0.50659814,3418.7,3418.1,0.03626085]
[1719939810823,0.50659814,3418.6,3418.1,0.03626085]
[1719939811031,0.50659814,3418.5,3418.1,0.03626085]
[1719939811326,3.97404,3418.8,3418.1,0.82125512]
[1719939811533,0.50659618,3418.7,3418.2,2.9255]
[1719939811830,1.049,3418.8,3418.3,0.03622601]
[1719939811831,0.50659618,3418.6,3418.3,0.03622601]
[1719939811992,1.049,3418.8,3418.2,2.9255]
[1719939812188,0.50658651,3418.7,3418.3,0.03622601]
[1719939812501,0.50658651,3418.6,3418.3,0.03622601]
[1719939812828,0.50658651,3418.5,3418.4,0.03620859]
[1719939813035,0.50658651,3418.5,3418.0,2.92562]
[1719939813036,0.50661629,3418.5,3418.0,2.92562]
[1719939813204,0.50661629,3418.4,3418.1,0.43372285]
[1719939813409,0.50661629,3418.7,3418.1,0.43372285]
[1719939813592,0.50662171,3418.6,3418.1,0.43372285]
[1719939813791,0.50662171,3418.5,3418.1,0.03626085]
[1719939814027,0.50662171,3418.7,3418.1,0.03626085]
[1719939814230,0.50662171,3418.6,3418.1,0.03626085]
[1719939814407,0.50662171,3418.5,3418.1,2.96185085]
[1719939814607,0.50662171,3418.4,3418.1,2.96185085]
[1719939814833,3.97401,3418.8,3418.1,2.96185085]
[1719939815040,0.50661414,3418.7,3418.1,3.65549794]
[1719939815212,0.50661414,3418.6,3418.1,3.65549794]
[1719939815406,0.50661414,3418.7,3418.1,3.65549794]
[1719939815610,0.50661414,3418.6,3418.1,3.65549794]
[1719939815810,0.50661414,3418.7,3418.1,2.96185085]
[1719939816010,0.5066145,3418.6,3418.1,2.96185085]
[1719939816346,0.5066145,3418.5,3418.1,2.96185085]
[1719939816507,0.5066145,3418.4,3418.1,2.96185085]
[1719939816717,3.97401,3418.8,3418.1,2.96185085]
[1719939816943,0.50661283,3418.7,3418.1,2.96185085]
[1719939817206,0.50661283,3418.6,3418.1,2.96185085]
[1719939817455,0.50661283,3418.7,3418.1,2.96185085]
[1719939817673,0.50661283,3418.6,3418.2,2.9255]
[1719939817985,0.50661283,3418.5,3418.1,0.03626085]
[1719939818259,0.50661283,3418.4,3418.2,0.03637826]
[1719939818562,1.049,3418.7,3418.2,0.03637826]
[1719939818785,0.50661328,3418.6,3418.0,2.92562]
[1719939818937,0.50661328,3418.5,3418.3,0.03636084]
[1719939819132,1.049,3418.7,3418.0,3.847975]
[1719939819356,0.50661582,3418.6,3418.0,3.847975]
[1719939819664,0.50661582,3418.6,3418.1,2.92558]
[1719939820239,0.50661582,3418.7,3418.2,0.03637826]
[1719939820431,0.50661582,3418.6,3418.2,0.03637826]
[1719939820758,0.50661582,3418.5,3418.2,0.03637826]
[1719939820970,2.92501,3418.8,3418.2,0.03637826]
[1719939821151,1.55560094,3418.7,3418.2,0.03637826]
[1719939821470,0.50660094,3418.6,3418.2,0.03637826]
[1719939821624,0.50660094,3418.5,3418.2,0.03637826]
[1719939821828,1.049,3418.7,3418.2,0.03637826]
[1719939822077,0.50660328,3418.6,3418.2,0.03637826]
[1719939822282,0.50660328,3418.5,3418.2,0.03637826]
[1719939822430,6.76488654,3418.9,3418.3,2.3232]
[1719939822625,6.76488654,3418.9,3418.4,0.03634342]
[1719939822626,3.22928654,3418.9,3418.4,0.03634342]
[1719939822952,0.50658388,3418.8,3418.4,0.03634342]
[1719939823176,0.50658388,3418.7,3418.4,0.03634342]
[1719939823323,0.50658388,3418.8,3418.4,0.03634342]
[1719939823661,0.50658388,3418.7,3418.4,0.03634342]
[1719939823833,0.50658388,3418.6,3418.4,0.03634342]
[1719939824178,0.30436654,3418.9,3418.4,0.03634342]
[1719939824324,0.50658368,3418.8,3418.4,0.03634342]
[1719939824525,0.50658368,3418.7,3418.4,0.03634342]
[1719939824826,0.50658368,3418.6,3418.4,0.03634342]
[1719939825056,0.30436654,3418.9,3418.4,0.03634342]
[1719939825239,0.50658383,3418.8,3418.4,0.03634342]
[1719939825445,0.50658383,3418.7,3418.4,0.03634342]
[1719939825730,0.50658322,3418.6,3418.4,0.03634342]
[1719939825937,0.30436654,3418.9,3418.4,0.03634342]
[1719939825938,0.50658322,3418.5,3418.4,0.03634342]
[1719939826257,1.35336654,3418.9,3418.4,0.03634342]
[1719939826494,0.50658825,3418.8,3418.4,0.03634342]
[1719939826702,0.50658825,3418.7,3418.4,0.03634342]
[1719939826871,0.50658825,3418.6,3418.4,0.03634342]
[1719939827193,0.50658823,3418.5,3418.4,0.03634342]
[1719939828864,1.049,3418.7,3418.4,0.03634342]
[1719939829095,0.50660367,3418.6,3418.1,8.10605]
[1719939829300,0.50660367,3418.6,3418.5,0.03640409]
[1719939829498,0.50660367,3418.6,3418.1,5.18052]
[1719939829789,0.50660367,3418.6,3418.5,0.03640409]
[1719939829967,0.50660367,3418.6,3418.1,2.92552]
[1719939830289,0.50660367,3418.6,3417.9,5.24893]
[1719939830493,0.50660367,3418.6,3418.2,0.03645634]
[1719939830728,0.50660367,3418.6,3417.9,5.24891]
[1719939830859,0.50660367,3418.6,3418.3,0.03643892]
[1719939831058,0.50660367,3418.6,3417.9,5.24891]
[1719939831261,0.50660367,3418.6,3418.0,2.96217118]
[1719939832057,0.50658935,3418.5,3418.0,2.96217118]
[1719939832257,6.24534,3418.7,3418.0,2.96217118]
[1719939832258,0.50658935,3418.4,3418.0,2.96217118]
[1719939832489,0.50658935,3418.6,3418.1,3.85159812]
[1719939832669,0.50658935,3418.5,3418.1,3.85159812]
[1719939832867,2.2712,3418.7,3418.2,0.03645634]
[1719939832868,0.50658935,3418.4,3418.2,0.03645634]
[1719939833069,2.2712,3418.7,3418.2,0.95015279]
[1719939833402,0.50658787,3418.6,3418.2,0.95015279]
[1719939833598,0.50658787,3418.5,3418.2,0.95015279]
[1719939833805,2.2712,3418.7,3418.2,0.95015279]
[1719939833806,0.50658787,3418.4,3418.2,0.95015279]
[1719939834012,0.50658787,3418.6,3418.2,0.95015279]
[1719939835263,2.2712,3418.7,3418.2,0.95015279]
[1719939835264,0.50660332,3418.5,3418.2,0.95015279]
[1719939835470,0.50660332,3418.4,3418.2,0.03645634]
[1719939835792,0.50660822,3418.3,3418.2,0.03645634]
[1719939838073,0.50660822,3418.3,3417.9,5.85143]
[1719939838275,0.50662799,3418.2,3418.0,2.96217958]
[1719939838476,6.24528,3418.7,3418.0,2.96217958]
[1719939838477,0.50662799,3418.1,3418.0,2.96217958]
[1719939840676,0.50662799,3418.1,3418.0,0.03651958]
[1719939840877,2.92519,3418.6,3418.0,0.03651958]
[1719939841078,2.92545,3418.3,3417.6,5.24915]
[1719939841297,2.92545,3418.3,3417.7,0.03663811]
[1719939841298,0.50663117,3418.2,3417.7,0.03663811]
[1719939842810,0.50663117,3418.2,3417.7,2.96255811]
[1719939843012,0.50663117,3418.2,3417.8,2.92578]
[1719939843221,5.41259,3418.7,3417.9,3.74691381]
[1719939843222,0.50663117,3418.6,3417.9,3.74691381]
[1719939843377,0.50663117,3418.5,3417.9,3.78353127]
[1719939843579,0.50663117,3418.4,3417.9,3.78353127]
[1719939843809,2.92522,3418.6,3418.0,0.77584513]
[1719939843810,0.50663117,3418.3,3418.0,0.77584513]
[1719939843979,0.50661718,3418.2,3418.1,0.03658262]
[1719939844389,0.50661718,3418.2,3417.9,3.74691381]
[1719939844706,0.50661718,3418.1,3418.0,0.03660004]
[1719939844905,0.50661718,3418.5,3418.0,0.03660004]
[1719939845109,0.50661718,3418.4,3418.0,0.03660004]
[1719939845315,0.50661718,3418.5,3418.0,0.03660004]
[1719939845636,0.50661718,3418.4,3418.0,0.03660004]
[1719939847204,2.92526,3418.5,3418.0,0.03660004]
[1719939847432,0.50663704,3418.4,3418.0,0.03660004]
[1719939847596,0.50662789,3418.3,3418.0,0.03660004]
[1719939847800,0.50662789,3418.2,3418.0,0.03660004]
[1719939847999,0.50662789,3418.4,3418.0,0.03660004]
[1719939850297,0.50664095,3418.3,3418.0,0.03660004]
[1719939850500,3.97426,3418.5,3418.0,0.03660004]
[1719939850501,0.50663646,3418.2,3418.0,0.03660004]
[1719939850728,0.50663646,3418.1,3418.0,0.03660004]
[1719939851509,0.50663646,3418.1,3417.8,2.92584]
[1719939851715,2.92526,3418.5,3418.0,0.03660951]
[1719939851933,0.50663216,3418.4,3417.9,0.03662693]
[1719939852232,0.50663216,3418.3,3418.0,0.03660714]
[1719939852401,0.50663216,3418.2,3417.8,3.848232]
[1719939852598,0.50663216,3418.4,3417.9,0.84065202]
[1719939853551,0.50663223,3418.3,3417.9,0.84065202]
[1719939853849,0.50663223,3418.2,3417.9,0.84065202]
[1719939854058,0.50663223,3418.1,3418.0,3.5949172]
[1719939854359,5.41259,3418.7,3418.0,5.95472434]
[1719939854509,1.91218169,3418.6,3418.0,5.95472434]
[1719939854710,0.50660638,3418.5,3418.0,5.95472434]
[1719939854944,0.50660638,3418.4,3418.0,5.95472434]
[1719939855137,0.50660638,3418.3,3418.0,5.95472434]
[1719939855337,0.50660638,3418.2,3418.1,0.88804143]
[1719939855854,0.50660638,3418.2,3418.1,0.92463115]
[1719939856749,5.41259,3418.7,3418.1,0.92463115]
[1719939856921,1.91220078,3418.6,3418.1,0.03658972]
[1719939857249,0.50660991,3418.5,3418.1,0.03658972]
[1719939857616,0.50660991,3418.4,3418.1,0.03658972]
[1719939857813,0.50660991,3418.6,3418.1,0.03658972]
[1719939858058,0.50660991,3418.5,3418.1,0.03658972]
[1719939858254,0.50660991,3418.6,3418.1,0.03658972]
[1719939858462,1.91220576,3418.5,3418.1,0.03658972]
[1719939858754,0.50660991,3418.4,3418.1,0.03658972]
[1719939858907,5.41259,3418.7,3418.1,0.03658972]
[1719939858908,0.50660991,3418.6,3418.1,0.03658972]
[1719939859114,1.40560583,3418.5,3418.1,0.03658972]
[1719939859309,0.50660991,3418.4,3418.1,0.03658972]
[1719939859521,1.049,3418.6,3418.1,0.03658972]
[1719939859522,0.50660991,3418.5,3418.1,0.03658972]
[1719939859730,1.4057065,3418.4,3418.1,0.03658972]
[1719939859958,0.50660991,3418.5,3418.1,0.03658972]
[1719939860127,1.049,3418.6,3418.1,0.03658972]
[1719939860128,1.40569944,3418.4,3418.1,0.03658972]
[1719939860326,0.50663571,3418.3,3418.1,0.03658972]
[1719939860549,0.50663422,3418.2,3418.1,0.03658972]
[1719939862017,0.50663422,3418.2,3418.1,2.96218972]
[1719939863248,5.41259,3418.7,3418.1,2.96218972]
[1719939863452,1.91218192,3418.6,3418.1,2.96218972]
[1719939863657,1.91224306,3418.5,3418.1,2.96218972]
[1719939863994,0.50660624,3418.4,3418.1,2.96218972]
[1719939864256,0.50660624,3418.6,3418.1,2.96218972]
[1719939864553,0.50660624,3418.5,3418.1,2.96218972]
[1719939864756,0.50660624,3418.4,3418.1,2.96218972]
[1719939864957,0.50660624,3418.3,3418.1,2.96218972]
[1719939865118,0.50660624,3418.2,3418.1,2.96218972]
[1719939865935,0.50660624,3418.2,3418.1,3.78329769]
[1719939866627,0.50660133,3418.2,3418.1,3.78329769]
[1719939868238,0.50659288,3418.2,3418.1,6.70889769]
[1719939870035,2.4875,3418.7,3418.1,6.70882769]
[1719939870248,1.91218487,3418.6,3418.1,2.96211972]
[1719939870454,1.91218487,3418.5,3418.1,5.88765972]
[1719939870643,0.50660681,3418.4,3418.1,5.88765972]
[1719939870864,0.50660681,3418.6,3418.1,5.88765972]
[1719939871075,1.91226372,3418.5,3418.1,5.88765972]
[1719939871302,0.50660681,3418.4,3418.1,5.88765972]
[1719939871600,0.50660681,3418.3,3418.1,5.88765972]
[1719939871741,0.50660681,3418.6,3418.1,2.96211972]
[1719939872085,1.4055983,3418.5,3418.1,5.88765972]
[1719939872283,0.50660681,3418.4,3418.1,5.88765972]
[1719939872576,0.50660681,3418.3,3418.1,5.88765972]
[1719939872785,0.50660681,3418.2,3418.1,2.96211972]
[1719939873647,0.50660681,3418.2,3418.1,5.88764972]
[1719939873648,0.50660501,3418.2,3418.1,5.88764972]
[1719939873867,0.50660501,3418.2,3418.1,6.70873469]
[1719939875506,0.50660501,3418.2,3418.1,9.03083469]
[1719939875801,3.22935654,3418.9,3418.1,9.03083469]
[1719939875952,1.91206747,3418.8,3418.1,9.03083469]
[1719939876294,3.22935654,3418.9,3418.2,3.90674611]
[1719939876295,1.91206747,3418.7,3418.2,3.90674611]
[1719939876588,3.22935654,3418.9,3418.2,3.90674611]
[1719939876589,1.91206761,3418.6,3418.3,0.03653358]
[1719939876788,0.50658426,3418.5,3418.2,2.9255]
[1719939877081,3.22935654,3418.9,3418.4,0.03651616]
[1719939877392,3.22935654,3418.9,3418.5,0.03649875]
[1719939877393,1.91211287,3418.8,3418.5,0.03649875]
[1719939877549,1.91211287,3418.7,3418.3,2.92539]
[1719939877748,0.30436654,3418.9,3418.3,2.92539]
[1719939877749,1.91211287,3418.6,3418.3,2.92539]
[1719939878051,0.5065843,3418.5,3418.3,2.92539]
[1719939878272,0.5065843,3418.4,3418.3,2.92539]
[1719939879654,0.50658496,3418.4,3418.3,2.92539]
[1719939880378,0.50658496,3418.4,3418.3,2.96192358]
[1719939880984,0.50658496,3418.4,3418.3,0.03653358]
[1719939881759,0.50658496,3418.4,3418.2,2.92551]
[1719939881952,0.50658496,3418.3,3418.2,2.92551]
[1719939882155,0.50658496,3418.5,3418.2,2.92551]
[1719939882813,2.3052,3418.6,3418.2,2.92551]
[1719939882962,1.9122188,3418.5,3418.2,2.92551]
[1719939883161,0.50661333,3418.4,3418.2,2.92551]
[1719939883408,0.50661333,3418.5,3418.2,2.92551]
[1719939883565,0.50661333,3418.4,3418.2,2.92551]
[1719939883764,0.50661333,3418.5,3418.2,2.92551]
[1719939886115,2.3052,3418.6,3418.2,2.92551]
[1719939886310,0.50661937,3418.4,3418.2,2.92551]
[1719939886490,2.3052,3418.6,3418.2,2.92551]
[1719939886816,1.91220612,3418.5,3418.0,5.85126]
[1719939886977,1.91220612,3418.5,3416.8,4.71209519]
[1719939886978,0.50661095,3418.4,3417.7,2.92587]
[1719939887182,0.50661095,3418.3,3417.9,2.92576]
[1719939887384,0.50661095,3418.5,3417.9,2.92576]
[1719939887700,0.50661095,3418.4,3417.9,2.92576]
[1719939887862,0.50661095,3418.5,3417.9,2.92576]
[1719939888059,5.23044,3418.6,3417.9,2.92576]
[1719939888060,0.50661095,3418.4,3417.9,2.92576]
[1719939888264,0.50661095,3418.3,3417.9,2.92576]
[1719939888466,0.50661095,3418.5,3417.9,2.92576]
[1719939888667,0.50661095,3418.4,3417.9,2.92576]
[1719939888866,0.50661095,3418.3,3417.9,2.92576]
[1719939889170,5.23044,3418.6,3417.9,2.92576]
[1719939889395,0.50663201,3418.5,3417.9,2.92576]
[1719939889596,0.50663201,3418.4,3417.9,2.92576]
[1719939889770,0.50663201,3418.3,3417.9,2.92576]
[1719939889972,0.50663201,3418.2,3417.9,2.92576]
[1719939890167,0.50663201,3418.1,3417.9,2.92576]
[1719939890395,0.50663201,3418.0,3417.9,2.92576]
[1719939890593,5.23044,3418.6,3417.7,2.92587]
[1719939890594,3.43189201,3418.5,3417.8,2.92584]
[1719939890868,0.50663201,3418.4,3417.8,2.92584]
[1719939892618,0.50663455,3418.3,3417.8,2.92584]
[1719939892816,0.50663455,3418.2,3417.8,2.92584]
[1719939892977,0.50663455,3418.4,3417.8,3.615911]
[1719939894815,0.50663455,3418.4,3417.8,5.939111]
[1719939895017,0.50663455,3418.4,3417.9,2.92574]
[1719939895320,0.50663455,3418.3,3417.9,2.96235273]
[1719939895527,0.50663455,3418.2,3417.9,2.96235273]